fUST/lending_fUST_20251004
["ID","MTS","AMOUNT","RATE_DAILY","PERIOD"]
[389103974,1759578767893,-540.42,0.00019213,2]
[389103975,1759578767918,-788.63,0.00019213,2]
[389103976,1759578767943,-500.0,0.00019487,2]
[389103977,1759578767971,-500.0,0.00019487,2]
[389103978,1759578768000,-500.0,0.00019487,2]
[389103979,1759578768027,-500.0,0.00019487,2]
[389103980,1759578768054,-500.0,0.00019487,2]
[389103981,1759578768082,-457.94,0.00019487,2]
[389103982,1759578768114,-590.18251648,0.00019487,2]
[389103983,1759578768397,-111.17748352,0.00019487,2]
[389103984,1759578768424,-500.0,0.00019487,2]
[389103985,1759578768452,-2585.17,0.00019487,2]
[389103986,1759578768482,-1335.16,0.00019487,2]
[389103987,1759578768509,-436.99503296,0.00019487,2]
[389103988,1759578768610,-63.00496704,0.00019487,2]
[389103989,1759578768637,-500.0,0.00019487,2]
[389103990,1759578768665,-500.0,0.00019487,2]
[389103991,1759578768694,-500.0,0.00019487,2]
[389103992,1759578768722,-697.54,0.00019487,2]
[389103993,1759578768750,-500.0,0.00019487,2]
[389103994,1759578768778,-706.84,0.00019487,2]
[389103995,1759578768805,-699.35,0.00019487,2]
[389103996,1759578768833,-680.5,0.00019487,2]
[389103997,1759578768947,-500.0,0.00019487,2]
[389103998,1759578768975,-727.62,0.00019487,2]
[389103999,1759578769000,-2868.46,0.00019487,2]
[389104000,1759578769027,-500.0,0.00019487,2]
[389104001,1759578769053,-307.85,0.00019487,2]
[389104002,1759578769120,-192.15,0.00019487,2]
[389104003,1759578769147,-891.01,0.00019487,2]
[389104004,1759578769173,-899.18,0.00019487,2]
[389104005,1759578769200,-1647.09,0.00019487,2]
[389104006,1759578769230,-1002.33,0.00019487,2]
[389104007,1759578769887,-500.0,0.00019213,2]
[389104008,1759578769896,-171.87251648,0.00019213,2]
[389104009,1759578769913,-328.12748352,0.00019213,2]
[389104010,1759578769923,-408.36251648,0.00019213,2]
[389104011,1759578770306,-500.0,0.00018989,2]
[389104012,1759578770335,-500.0,0.00018989,2]
[389104013,1759578770363,-500.0,0.00018989,2]
[389104014,1759578770391,-500.0,0.00018989,2]
[389104015,1759578770419,-155.49042821,0.00018989,2]
[389104016,1759578770449,-91.63748352,0.00019213,2]
[389104017,1759578770477,-1277.33,0.00019487,2]
[389104018,1759578770504,-500.0,0.00019487,2]
[389104019,1759578770531,-500.0,0.00019487,2]
[389104020,1759578770561,-451.09417654,0.00019487,2]
[389104021,1759578770862,-48.90582346,0.00019487,2]
[389104022,1759578770911,-500.0,0.00018989,2]
[389104023,1759578770938,-613.08,0.00019487,2]
[389104024,1759578770965,-500.0,0.00019487,2]
[389104025,1759578770991,-500.0,0.00019487,2]
[389104026,1759578771017,-591.11,0.00019487,2]
[389104027,1759578771044,-551.6,0.00019487,2]
[389104028,1759578771069,-500.0,0.00019487,2]
[389104029,1759578771095,-500.0,0.00019487,2]
[389104030,1759578771122,-500.0,0.00019487,2]
[389104031,1759578771224,-500.0,0.00018989,2]
[389104032,1759578771255,-500.0,0.00019213,2]
[389104033,1759578771284,-500.0,0.00019487,2]
[389104034,1759578771312,-821.3,0.00019487,2]
[389104035,1759578771339,-373.84,0.00019487,2]
[389104036,1759578771365,-553.49,0.00019487,2]
[389104037,1759578771390,-863.57,0.00019487,2]
[389104038,1759578771543,-3026.96,0.00019487,2]
[389104039,1759578771569,-951.26,0.00019487,2]
[389104040,1759578771595,-500.0,0.00019487,2]
[389104041,1759578771620,-500.0,0.00019487,2]
[389104042,1759578771715,-500.0,0.00018989,2]
[389104043,1759578771741,-500.0,0.00019487,2]
[389104044,1759578771768,-1455.99,0.00019487,2]
[389104045,1759578771795,-560.58,0.00019487,2]
[389104046,1759578771822,-500.0,0.00019487,2]
[389104047,1759578771849,-500.0,0.00019487,2]
[389104048,1759578771876,-596.18,0.00019487,2]
[389104049,1759578771902,-336.42,0.00019487,2]
[389104050,1759578772063,-500.0,0.00018989,2]
[389104051,1759578772089,-101.67,0.00019487,2]
[389104052,1759578772116,-2204.63,0.00019487,2]
[389104053,1759578772144,-500.0,0.00019487,2]
[389104054,1759578772170,-788.63,0.00019487,2]
[389104055,1759578772196,-500.0,0.00019487,2]
[389104056,1759578772224,-310.15,0.00019487,2]
[389104057,1759578772363,-500.0,0.00018989,2]
[389104058,1759578772390,-189.85,0.00019487,2]
[389104059,1759578772417,-500.0,0.00019487,2]
[389104060,1759578772444,-518.66547144,0.00019661,2]
[389104061,1759578772471,-3111.90905712,0.00019761,2]
[389104062,1759578772599,-610.83441369,0.00018989,2]
[389104063,1759578772626,-500.0,0.00019213,2]
[389104064,1759578772653,-359.16094288,0.00019761,2]
[389104065,1759578772679,-281.139685,0.00019761,2]
[389104066,1759578772706,-281.139685,0.00019761,2]
[389104067,1759578772733,-500.0,0.00019761,2]
[389104068,1759578773279,-500.0,0.00018989,2]
[389104069,1759578773292,-55.75621631,0.00018989,2]
[389104070,1759578773326,-444.24378369,0.00018989,2]
[389104071,1759578773335,-166.59063,0.00018989,2]
[389104072,1759578773350,-333.40937,0.00018989,2]
[389104073,1759578773359,-166.59063,0.00018989,2]
[389104074,1759578773541,-333.40937,0.00018989,2]
[389104075,1759578773551,-25.75157288,0.00018989,2]
[389104076,1759578773565,-281.139685,0.00018989,2]
[389104077,1759578773579,-193.10874212,0.00018989,2]
[389104078,1759578773589,-88.03094288,0.00019213,2]
[389104079,1759578773613,-500.0,0.00018989,2]
[389104080,1759578773627,-411.96905712,0.00019213,2]
[389104081,1759578773637,-500.0,0.00019487,2]
[389104082,1759578773647,-500.0,0.00019487,2]
[389104083,1759578773656,-3523.49148974,0.00019761,2]
[389104084,1759578774043,-500.0,0.00018989,2]
[389104085,1759578774072,-500.0,0.00018989,2]
[389104086,1759578774102,-500.0,0.00018989,2]
[389104087,1759578774131,-500.0,0.00018989,2]
[389104088,1759578774158,-500.0,0.00018989,2]
[389104089,1759578774186,-500.0,0.00018989,2]
[389104090,1759578774213,-500.0,0.00018989,2]
[389104091,1759578774241,-516.94,0.00019213,2]
[389104092,1759578774269,-516.94,0.00019487,2]
[389104093,1759578774412,-500.0,0.00018989,2]
[389104094,1759578774437,-500.0,0.00019213,2]
[389104095,1759578774463,-2899.07110926,0.00019761,2]
[389104096,1759578774600,-500.0,0.00018989,2]
[389104097,1759578774627,-2577.447401,0.00019761,2]
[389104098,1759578774739,-56.67038048,0.00018989,2]
[389104099,1759578774770,-443.32961952,0.00018989,2]
[389104100,1759578774798,-500.0,0.00019213,2]
[389104101,1759578774825,-1650.69,0.00019213,2]
[389104102,1759578774862,-966.85556296,0.00019761,2]
[389104103,1759578774922,-2878.25963504,0.00019761,2]
[389104104,1759578774932,-483.42778148,0.00019761,2]
[389104105,1759578774962,-4060.87518248,0.00019761,2]
[389104106,1759578775111,-500.0,0.00019213,2]
[389104107,1759578775120,-1878.25963504,0.00019761,2]
[389104108,1759578775142,-1650.69,0.00019487,2]
[389104109,1759578775151,-4288.44481752,0.00019761,2]
[389104110,1759578776000,-500.0,0.00018989,2]
[389104111,1759578776028,-500.0,0.00019213,2]
[389104112,1759578776056,-500.0,0.00019213,2]
[389104113,1759578776083,-500.0,0.00019213,2]
[389104114,1759578776110,-500.0,0.00019487,2]
[389104115,1759578776146,-2134.11778148,0.00019761,2]
[389104116,1759578776240,-3577.447401,0.00019761,2]
[389104117,1759578776321,-2845.115198,0.00019761,2]
[389104118,1759578776331,-731.77443704,0.00019761,2]
[389104119,1759578776363,-4309.22183804,0.00019761,2]
[389104120,1759578776394,-1381.56632392,0.00019761,2]
[389104121,1759578776436,-500.0,0.00019486,2]
[389104122,1759578776464,-2577.447401,0.00019761,2]
[389104123,1759578776508,-3845.115198,0.00019761,2]
[389104124,1759578776578,-3577.447401,0.00019761,2]
[389104125,1759578776600,-2845.115198,0.00019761,2]
[389104126,1759578776730,-500.0,0.00019761,2]
[389104127,1759578776758,-500.0,0.00019761,2]
[389104128,1759578776787,-500.0,0.00019761,2]
[389104129,1759578776814,-593.48,0.00019761,2]
[389104130,1759578776844,-500.0,0.00019761,2]
[389104131,1759578776872,-151.0,0.00019761,2]
[389104132,1759578776900,-151.0,0.00019761,2]
[389104133,1759578776928,-500.0,0.00019761,2]
[389104134,1759578776954,-399.58,0.00019761,2]
[389104135,1759578776981,-500.0,0.00019761,2]
[389104136,1759578777009,-500.0,0.00019761,2]
[389104137,1759578777192,-409.89,0.00019213,2]
[389104138,1759578778164,-90.11,0.00019213,2]
[389104139,1759578778191,-500.0,0.00019213,2]
[389104140,1759578778218,-500.0,0.00019487,2]
[389104141,1759578778244,-701.36,0.00019761,2]
[389104142,1759578778271,-2585.17,0.00019761,2]
[389104143,1759578778669,-1246.73,0.00019761,2]
[389104144,1759578778776,-88.43,0.00019761,2]
[389104145,1759578778802,-500.0,0.00019761,2]
[389104146,1759578778828,-500.0,0.00019761,2]
[389104147,1759578778855,-500.0,0.00019761,2]
[389104148,1759578778881,-697.54,0.00019761,2]
[389104149,1759578778907,-706.84,0.00019761,2]
[389104150,1759578778934,-699.35,0.00019761,2]
[389104151,1759578778960,-680.5,0.00019761,2]
[389104152,1759578778986,-500.0,0.00019761,2]
[389104153,1759578779028,-500.0,0.00019213,2]
[389104154,1759578779056,-727.62,0.00019761,2]
[389104155,1759578779083,-2868.46,0.00019761,2]
[389104156,1759578779110,-500.0,0.00019761,2]
[389104157,1759578779136,-307.85,0.00019761,2]
[389104158,1759578779167,-192.15,0.00019761,2]
[389104159,1759578779195,-891.01,0.00019761,2]
[389104160,1759578779221,-899.18,0.00019761,2]
[389104161,1759578779248,-1647.09,0.00019761,2]
[389104162,1759578779276,-1002.33,0.00019761,2]
[389104163,1759578779345,-1277.33,0.00019761,2]
[389104164,1759578779373,-500.0,0.00019761,2]
[389104165,1759578779399,-500.0,0.00019761,2]
[389104166,1759578779428,-613.08,0.00019761,2]
[389104167,1759578779455,-484.43265003,0.00019761,2]
[389104168,1759578779481,-500.0,0.00019761,2]
[389104169,1759578779511,-591.11,0.00019761,2]
[389104170,1759578779538,-516.50469994,0.00019761,2]
[389104171,1759578779664,-35.09530006,0.00019761,2]
[389104172,1759578779690,-500.0,0.00019761,2]
[389104173,1759578779718,-500.0,0.00019761,2]
[389104174,1759578779743,-500.0,0.00019761,2]
[389104175,1759578779769,-500.0,0.00019761,2]
[389104176,1759578779796,-821.3,0.00019761,2]
[389104177,1759578779823,-553.49,0.00019761,2]
[389104178,1759578779849,-863.57,0.00019761,2]
[389104179,1759578779947,-3026.96,0.00019761,2]
[389104180,1759578779974,-1204.0,0.00019761,2]
[389104181,1759578780000,-586.83,0.00019761,2]
[389104182,1759578780805,-500.0,0.00019213,2]
[389104183,1759578780815,-383.02469994,0.00019213,2]
[389104184,1759578780828,-1204.0,0.00019213,2]
[389104185,1759578780842,-314.30530006,0.00019213,2]
[389104186,1759578780851,-364.43,0.00019761,2]
[389104187,1759578780860,-272.52469994,0.00019761,2]
[389104188,1759578780890,-227.47530006,0.00019761,2]
[389104189,1759578781069,-151.0,0.00019761,2]
[389104190,1759578781096,-151.0,0.00019761,2]
[389104191,1759578781123,-151.0,0.00019761,2]
[389104192,1759578781150,-500.0,0.00019761,2]
[389104193,1759578781176,-158.93215069,0.00019761,2]
[389104194,1759578781202,-500.0,0.00019761,2]
[389104195,1759578781228,-1455.99,0.00019761,2]
[389104196,1759578781256,-560.58,0.00019761,2]
[389104197,1759578781290,-500.0,0.00019761,2]
[389104198,1759578781329,-500.0,0.00019761,2]
[389104199,1759578781355,-55.91403969,0.00019761,2]
[389104200,1759578781399,-1901.33,0.00019487,2]
[389104201,1759578781426,-176.22701912,0.00019761,2]
[389104202,1759578781453,-2204.63,0.00019761,2]
[389104203,1759578781481,-500.0,0.00019761,2]
[389104204,1759578781527,-788.63,0.00019761,2]
[389104205,1759578781554,-360.05,0.00019761,2]
[389104206,1759578781580,-500.0,0.00019761,2]
[389104207,1759578781606,-500.0,0.00019761,2]
[389104208,1759578781632,-500.0,0.00019761,2]
[389104209,1759578781660,-516.94,0.00019761,2]
[389104210,1759578781686,-1650.69,0.00019761,2]
[389104211,1759578781713,-67.47,0.00019761,2]
[389104212,1759578781760,-232.45,0.00019761,2]
[389104213,1759578781790,-500.0,0.00019761,2]
[389104214,1759578781817,-1901.33,0.00019761,2]
[389104215,1759578781844,-500.0,0.00019761,2]
[389104216,1759578781871,-500.0,0.00019773,2]
[389104217,1759578781908,-311.14339076,0.00019798,2]
[389104218,1759578782686,-33.16959012,0.00019213,2]
[389104219,1759578782754,-466.83040988,0.00019213,2]
[389104220,1759578782763,-33.16959012,0.00019213,2]
[389104221,1759578782777,-466.83040988,0.00019213,2]
[389104222,1759578782786,-500.0,0.00019487,2]
[389104223,1759578782795,-500.0,0.00019761,2]
[389104224,1759578782804,-1265.61959012,0.00019798,2]
[389104225,1759578782818,-8112.10362836,0.00019798,2]
[389104226,1759578782827,-301.86743614,0.00019894,2]
[389104227,1759578782837,-1207.46974456,0.00019894,2]
[389104228,1759578782846,-67.42580018,0.00019894,2]
[389104229,1759578782891,-2649.38112509,0.00019894,2]
[389104230,1759578782933,-4829.87897825,0.00019894,2]
[389104231,1759578783095,-500.0,0.00019213,2]
[389104232,1759578783105,-300.0,0.00019797,2]
[389104233,1759578783114,-3901.24774982,0.00019894,2]
[389104234,1759578783127,-340.2520435,0.00019894,2]
[389104235,1759578784172,-500.0,0.00019213,2]
[389104236,1759578784203,-500.0,0.00019487,2]
[389104237,1759578784232,-500.0,0.00019761,2]
[389104238,1759578784263,-3297.6394243,0.00019894,2]
[389104239,1759578784373,-404.7311514,0.00020025,3]
[389104240,1759578784404,-98.5788486,0.00020025,3]
[389104241,1759578784431,-1204.0,0.00020035,2]
[389104242,1759578784458,-151.0,0.00020035,2]
[389104243,1759578784485,-152.60804283,0.00020035,2]
[389104244,1759578784514,-500.0,0.00020035,2]
[389104245,1759578784542,-2316.56621714,0.00020035,2]
[389104246,1759578784624,-1154.50378286,0.00020035,2]
[389104247,1759578784795,-281.139685,0.00020035,2]
[389104248,1759578784824,-500.0,0.00020035,2]
[389104249,1759578784918,-964.04,0.00019213,2]
[389104250,1759578784947,-1649.367401,0.00020035,2]
[389104251,1759578785013,-4773.195198,0.00020035,2]
[389104252,1759578785116,-860.66424814,0.00019487,2]
[389104253,1759578785130,-103.37575186,0.00019487,2]
[389104254,1759578785139,-6319.18684714,0.00020035,2]
[389104255,1759578785157,-103.37575186,0.00020035,2]
[389104256,1759578785165,-4669.81944614,0.00020035,2]
[389104257,1759578785183,-453.619604,0.00020035,2]
[389104258,1759578786350,-695.96,0.00019213,2]
[389104259,1759578786379,-695.96,0.00019487,2]
[389104260,1759578786405,-695.96,0.00019761,2]
[389104261,1759578786432,-964.04,0.00019761,2]
[389104262,1759578786460,-1299.12354886,0.00020035,2]
[389104263,1759578786488,-519.52,0.00020035,2]
[389104264,1759578786607,-258.88290228,0.00019213,2]
[389104265,1759578786647,-733.08709772,0.00019213,2]
[389104266,1759578786673,-593.12,0.00019213,2]
[389104267,1759578786700,-991.97,0.00019487,2]
[389104268,1759578786772,-5363.65580456,0.00020035,2]
[389104269,1759578786810,-593.12,0.00019487,2]
[389104270,1759578786840,-1058.90679544,0.00020035,2]
[389104271,1759578786866,-500.0,0.00020035,2]
[389104272,1759578786894,-338.76,0.00020035,2]
[389104273,1759578786922,-500.0,0.00020035,2]
[389104274,1759578786950,-410.98,0.00020035,2]
[389104275,1759578786979,-333.47,0.00020035,2]
[389104276,1759578787006,-500.0,0.00020035,2]
[389104277,1759578787034,-701.36,0.00020035,2]
[389104278,1759578787219,-991.97,0.00019761,2]
[389104279,1759578787246,-2585.17,0.00020035,2]
[389104280,1759578787278,-1335.16,0.00020035,2]
[389104281,1759578787439,-593.12,0.00019761,2]
[389104282,1759578787467,-500.0,0.00020035,2]
[389104283,1759578787494,-500.0,0.00020035,2]
[389104284,1759578787523,-500.0,0.00020035,2]
[389104285,1759578787551,-697.54,0.00020035,2]
[389104286,1759578787578,-706.84,0.00020035,2]
[389104287,1759578787608,-699.35,0.00020035,2]
[389104288,1759578787636,-680.5,0.00020035,2]
[389104289,1759578787989,-302.22640912,0.00020035,2]
[389104290,1759578788003,-245.31,0.00020035,2]
[389104291,1759578788336,-500.0,0.00019213,2]
[389104292,1759578788363,-500.0,0.00019213,2]
[389104293,1759578788392,-480.0,0.00019487,2]
[389104294,1759578788419,-180.08359088,0.00020035,2]
[389104295,1759578788446,-500.0,0.00020035,2]
[389104296,1759578788471,-2811.38281824,0.00020035,2]
[389104297,1759578788563,-57.07718176,0.00020035,2]
[389104298,1759578788602,-500.0,0.00020035,2]
[389104299,1759578788630,-500.0,0.00020035,2]
[389104300,1759578788657,-891.01,0.00020035,2]
[389104301,1759578788685,-899.18,0.00020035,2]
[389104302,1759578788713,-1647.09,0.00020035,2]
[389104303,1759578788742,-123.12,0.00020035,2]
[389104304,1759578789137,-500.0,0.00019487,2]
[389104305,1759578789164,-879.21,0.00020035,2]
[389104306,1759578789192,-1277.33,0.00020035,2]
[389104307,1759578789219,-500.0,0.00020035,2]
[389104308,1759578789246,-500.0,0.00020035,2]
[389104309,1759578789272,-613.08,0.00020035,2]
[389104310,1759578789304,-426.51887319,0.00020035,2]
[389104311,1759578789332,-16.62225362,0.00020035,2]
[389104312,1759578789610,-436.06887319,0.00019761,2]
[389104313,1759578789634,-63.93112681,0.00019761,2]
[389104314,1759578789645,-362.58774638,0.00020035,2]
[389104315,1759578789663,-211.9,0.00020035,2]
[389104316,1759578789672,-379.21,0.00020035,2]
[389104317,1759578792342,-500.0,0.00018989,2]
[389104318,1759578792372,-500.0,0.00018989,2]
[389104319,1759578792401,-500.0,0.00018989,2]
[389104320,1759578792430,-302.8012644,0.00018989,2]
[389104321,1759578792461,-500.0,0.00019213,2]
[389104322,1759578792489,-500.0,0.00019213,2]
[389104323,1759578792518,-500.0,0.00019213,2]
[389104324,1759578792546,-500.0,0.00019486,2]
[389104325,1759578792577,-500.0,0.00019486,2]
[389104326,1759578792606,-500.0,0.00019486,2]
[389104327,1759578792724,-500.0,0.00019213,2]
[389104328,1759578792753,-605.0,0.00019486,2]
[389104329,1759578792781,-500.0,0.00019487,2]
[389104330,1759578792808,-500.0,0.00019487,2]
[389104331,1759578792836,-554.82,0.00019761,2]
[389104332,1759578792864,-500.0,0.00019761,2]
[389104333,1759578792893,-172.39,0.00020035,2]
[389104334,1759578792920,-500.0,0.00020035,2]
[389104335,1759578792947,-500.0,0.00020035,2]
[389104336,1759578792975,-500.0,0.00020035,2]
[389104337,1759578793080,-500.0,0.00019213,2]
[389104338,1759578793109,-500.0,0.00020035,2]
[389104339,1759578793137,-821.3,0.00020035,2]
[389104340,1759578793166,-553.49,0.00020035,2]
[389104341,1759578793196,-863.57,0.00020035,2]
[389104342,1759578793223,-496.33,0.00020035,2]
[389104343,1759578793317,-500.0,0.00019487,2]
[389104344,1759578793346,-2530.63,0.00020035,2]
[389104345,1759578793376,-951.26,0.00020035,2]
[389104346,1759578793405,-500.0,0.00020035,2]
[389104347,1759578793433,-500.0,0.00020035,2]
[389104348,1759578793727,-500.0,0.00019213,2]
[389104349,1759578793753,-500.0,0.00019487,2]
[389104350,1759578793780,-1455.99,0.00020035,2]
[389104351,1759578793806,-560.58,0.00020035,2]
[389104352,1759578793832,-500.0,0.00020035,2]
[389104353,1759578793858,-500.0,0.00020035,2]
[389104354,1759578794013,-500.0,0.00019761,2]
[389104355,1759578794041,-2204.63,0.00020035,2]
[389104356,1759578794067,-500.0,0.00020035,2]
[389104357,1759578794094,-788.63,0.00020035,2]
[389104358,1759578794124,-500.0,0.00020035,2]
[389104359,1759578794152,-500.0,0.00020035,2]
[389104360,1759578794265,-500.0,0.00019487,2]
[389104361,1759578794299,-516.94,0.00020035,2]
[389104362,1759578794326,-1650.69,0.00020035,2]
[389104363,1759578794356,-1901.33,0.00020035,2]
[389104364,1759578794384,-362.09,0.00020035,2]
[389104365,1759578794507,-137.91,0.00020035,2]
[389104366,1759578794534,-500.0,0.00020035,2]
[389104367,1759578794561,-695.96,0.00020035,2]
[389104368,1759578794588,-964.04,0.00020035,2]
[389104369,1759578794618,-991.97,0.00020035,2]
[389104370,1759578794649,-593.12,0.00020035,2]
[389104371,1759578794674,-500.0,0.00020035,2]
[389104372,1759578794703,-500.0,0.00020035,2]
[389104373,1759578795412,-165.0374712,0.00019213,2]
[389104374,1759578795425,-334.9625288,0.00019213,2]
[389104375,1759578795434,-165.0374712,0.00019213,2]
[389104376,1759578795479,-137.91,0.00019213,2]
[389104377,1759578795492,-197.0525288,0.00019213,2]
[389104378,1759578795502,-302.9474712,0.00019761,2]
[389104379,1759578795517,-197.0525288,0.00019761,2]
[389104380,1759578795529,-498.9074712,0.00020035,2]
[389104381,1759578795548,-552.45857032,0.00019487,2]
[389104382,1759578795557,-1.0925288,0.00020035,2]
[389104383,1759578795566,-410.48890088,0.00020035,2]
[389104384,1759578795580,-89.51109912,0.00020035,2]
[389104385,1759578795588,-518.66547141,0.00020072,2]
[389104386,1759578795597,-383.79342947,0.00020217,2]
[389104387,1759578795611,-19.47135238,0.00020217,2]
[389104388,1759578795620,-573.64864762,0.00020309,2]
[389104389,1759578795633,-500.0,0.00020309,2]
[389104390,1759578795647,-130.35135238,0.00020309,2]
[389104391,1759578795656,-221.8822685,0.00020309,2]
[389104392,1759578795666,-147.76637912,0.00020309,2]
[389104393,1759578795681,-234.01,0.00020309,2]
[389104394,1759578796448,-500.0,0.00019213,2]
[389104395,1759578796476,-500.0,0.00019213,2]
[389104396,1759578796505,-118.22362088,0.00020309,2]
[389104397,1759578796535,-3471.07,0.00020309,2]
[389104398,1759578796561,-321.42275824,0.00020309,2]
[389104399,1759578796638,-178.57724176,0.00020309,2]
[389104400,1759578796671,-500.0,0.00020309,2]
[389104401,1759578796699,-500.0,0.00020309,2]
[389104402,1759578796727,-500.0,0.00020309,2]
[389104403,1759578796753,-701.36,0.00020309,2]
[389104404,1759578796779,-2585.17,0.00020309,2]
[389104405,1759578796861,-1335.16,0.00020309,2]
[389104406,1759578796887,-500.0,0.00020309,2]
[389104407,1759578796912,-500.0,0.00020309,2]
[389104408,1759578796939,-500.0,0.00020309,2]
[389104409,1759578796965,-697.54,0.00020309,2]
[389104410,1759578796992,-706.84,0.00020309,2]
[389104411,1759578797160,-699.35,0.00020309,2]
[389104412,1759578797325,-680.5,0.00020309,2]
[389104413,1759578797354,-727.62,0.00020309,2]
[389104414,1759578797382,-500.0,0.00020309,2]
[389104415,1759578797409,-2868.46,0.00020309,2]
[389104416,1759578797437,-193.18867532,0.00020309,2]
[389104417,1759578797566,-500.0,0.00020309,2]
[389104418,1759578797597,-891.01,0.00020309,2]
[389104419,1759578797626,-899.18,0.00020309,2]
[389104420,1759578797655,-1647.09,0.00020309,2]
[389104421,1759578797684,-1002.33,0.00020309,2]
[389104422,1759578797746,-1277.33,0.00020309,2]
[389104423,1759578797773,-500.0,0.00020309,2]
[389104424,1759578797802,-500.0,0.00020309,2]
[389104425,1759578797829,-613.08,0.00020309,2]
[389104426,1759578797858,-591.11,0.00020309,2]
[389104427,1759578797886,-551.6,0.00020309,2]
[389104428,1759578797913,-500.0,0.00020309,2]
[389104429,1759578797941,-433.77,0.00020309,2]
[389104430,1759578798466,-66.23,0.00020309,2]
[389104431,1759578798476,-258.71264936,0.00020309,2]
[389104432,1759578798494,-241.28735064,0.00020309,2]
[389104433,1759578798503,-258.71264936,0.00020309,2]
[389104434,1759578808468,-5000.0,0.00019021,2]
[389104435,1759578808508,-0.01,0.00019213,2]
[389104436,1759578812516,-499.99,0.00019213,2]
[389104437,1759578812542,-500.0,0.00019213,2]
[389104438,1759578812568,-639.03,0.00019213,2]
[389104439,1759578812593,-500.0,0.00019213,2]
[389104440,1759578812618,-500.0,0.00019213,2]
[389104441,1759578812643,-500.0,0.00019213,2]
[389104442,1759578812670,-690.24,0.00019213,2]
[389104443,1759578812696,-500.0,0.00019213,2]
[389104444,1759578812725,-500.0,0.00019213,2]
[389104445,1759578812872,-341.49,0.00019213,2]
[389104446,1759578814653,-158.51,0.00019213,2]
[389104447,1759578814680,-704.65,0.00019213,2]
[389104448,1759578814707,-500.0,0.00019213,2]
[389104449,1759578814733,-500.0,0.00019213,2]
[389104450,1759578814759,-504.7952278,0.00019213,2]
[389104451,1759578814785,-532.6395444,0.00019213,2]
[389104452,1759578814881,-4198.8204556,0.00019213,2]
[389104453,1759578816696,-500.0,0.00019213,2]
[389104454,1759578816722,-1023.32,0.00019213,2]
[389104455,1759578816749,-591.31,0.00019213,2]
[389104456,1759578816777,-1874.39,0.00019213,2]
[389104457,1759578816803,-500.0,0.00019487,2]
[389104458,1759578816830,-382.94,0.00019487,2]
[389104459,1759578816927,-256.09,0.00019487,2]
[389104460,1759578818648,-5000.0,0.00019021,2]
[389104461,1759578818681,-0.01,0.00019213,2]
[389104462,1759578820595,-499.99,0.00019213,2]
[389104463,1759578820620,-500.0,0.00019213,2]
[389104464,1759578820644,-493.29142968,0.00019213,2]
[389104465,1759578820670,-500.0,0.00019213,2]
[389104466,1759578820695,-500.0,0.00019487,2]
[389104467,1759578820720,-690.24,0.00019487,2]
[389104468,1759578820746,-268.82257756,0.00019487,2]
[389104469,1759578820772,-704.65,0.00019487,2]
[389104470,1759578820800,-500.0,0.00019487,2]
[389104471,1759578821156,-686.02198552,0.00019487,2]
[389104472,1759578824621,-500.0,0.00019213,2]
[389104473,1759578824647,-500.0,0.00019213,2]